fUSD/lending_fUSD_20240828
["ID","MTS","AMOUNT","RATE_DAILY","PERIOD"]
[336457211,1724841032760,-150.0,0.00010904,2]
[336457213,1724841032769,-447.0,0.00010904,2]
[336457214,1724841032778,-810.0,0.00010904,2]
[336457216,1724841032787,-1898.0,0.00010904,2]
[336457218,1724841032796,-552.0,0.00010904,2]
[336457219,1724841032806,-804.0,0.00010904,2]
[336457220,1724841032815,-1147.0,0.00010904,2]
[336457221,1724841032824,-3321.0,0.00010904,2]
[336457222,1724841032833,-248.0,0.00010904,2]
[336457223,1724841032844,-1076.0,0.00010904,2]
[336457224,1724841032853,-1922.0,0.00010904,2]
[336457225,1724841032862,-5851.0,0.00010904,2]
[336457226,1724841032872,-1545.0,0.00010904,2]
[336457227,1724841032881,-3730.0,0.00010904,2]
[336457228,1724841032891,-724.12641795,0.00010919,2]
[336457229,1724841032901,-500.0,0.00010921,2]
[336457230,1724841032910,-500.0,0.0001093,2]
[336457231,1724841032919,-724.12641795,0.00010936,2]
[336457232,1724841032928,-500.0,0.00010938,2]
[336457233,1724841032938,-500.0,0.00010947,2]
[336457234,1724841032947,-585.40342719,0.00010949,2]
[336457235,1724841032956,-724.12641795,0.00010952,2]
[336457236,1724841032967,-500.0,0.00010956,2]
[336457237,1724841032976,-172.56,0.00010959,2]
[336457238,1724841032986,-331.36,0.00010959,2]
[336457239,1724841032995,-276.13,0.00010959,2]
[336457240,1724841033006,-230.11,0.00010959,2]
[336457241,1724841033015,-191.76,0.00010959,2]
[336457242,1724841033025,-159.8,0.00010959,2]
[336457243,1724841033034,-2000.0,0.00010959,2]
[336457244,1724841033043,-799.03,0.00010959,2]
[336457245,1724841033053,-500.0,0.00010965,2]
[336457246,1724841033063,-200.02598223,0.00010973,2]
[336457247,1724841033072,-500.0,0.00010973,2]
[336457248,1724841033081,-500.0,0.00010974,2]
[336457249,1724841033092,-500.0,0.00010982,2]
[336457250,1724841033102,-500.0,0.00010991,2]
[336457251,1724841033111,-191.19199648,0.00010997,2]
[336457252,1724841033121,-420.0,0.00010998,2]
[336457253,1724841033131,-411.47229295,0.00010999,2]
[336457254,1724841033141,-2258.999999,0.00010999,2]
[336457255,1724841033150,-539.39439718,0.00010999,2]
[336457256,1724841033160,-288927.80776693,0.00011,2]
[336457257,1724841033169,-500.0,0.00011,2]
[336457258,1724841033178,-500.0,0.00011,2]
[336457259,1724841033188,-69372.00171607,0.00011,2]
[336457260,1724841033200,-575.10458265,0.00011,2]
[336457270,1724841038066,-155.0,0.00010471,2]
[336457271,1724841038076,-623.0,0.00010793,2]
[336457272,1724841038085,-500.0,0.00010973,2]
[336457273,1724841038093,-11226.31307594,0.00011,2]
[336457274,1724841038147,-17230.93025997,0.00011,2]
[336457275,1724841038159,-122607.90377946,0.00011,2]
[336457276,1724841038172,-4672.55857547,0.00011,2]
[336457277,1724841038227,-1025.79421617,0.00011,2]
[336457278,1724841038239,-30090.03445858,0.00011,2]
[336457279,1724841038251,-64070.0,0.00011,2]
[336457280,1724841038323,-9011.29504231,0.00011,2]
[336457281,1724841038336,-1851.28133172,0.00011,2]
[336457309,1724841040067,-1206.0,0.00010793,2]
[336457310,1724841040077,-585.49566672,0.00011,2]
[336457311,1724841040088,-379.9422459,0.00011,2]
[336457312,1724841040211,-373.65014492,0.00011,2]
[336457313,1724841040223,-976.22792937,0.00011,2]
[336457314,1724841040235,-3838.14,0.00011,2]
[336457315,1724841040288,-372.13537051,0.00011,2]
[336457316,1724841040432,-3733.35497294,0.00011,2]
[336457435,1724841043010,-63938.0,0.00011,2]
[336457436,1724841043099,-984.3750204,0.00011,2]
[336457452,1724841046150,-13456.0,0.00010793,2]
[336457453,1724841046160,-106533.04608903,0.00011,2]
[336457569,1724841092680,500.0,8.972e-05,2]
[336457570,1724841116640,500.0,8.972e-05,2]
[336457571,1724841217943,500.0,8.972e-05,2]
[336457572,1724841219796,500.0,8.972e-05,2]
[336457573,1724841310232,499.94,8.219e-05,2]
[336457574,1724841313777,500.0,8.972e-05,2]
[336457575,1724841323395,500.0,8.972e-05,2]
[336457576,1724841326051,500.0,8.972e-05,2]
[336457577,1724841530042,364.54,9.883e-05,2]
[336457578,1724841599962,250.0,9.879e-05,2]
[336457579,1724841633572,23900.0,9.88e-05,2]
[336457580,1724841720657,372.56935512,9.88e-05,2]
[336457581,1724841737487,1000.0,9.81e-05,2]
[336457582,1724841807627,500.0,9.833e-05,2]
[336457583,1724841893146,529.035374,9.887e-05,2]
[336457584,1724841936456,498.52,8.219e-05,2]
[336457585,1724841967935,427.8,9.811e-05,2]
[336457586,1724842006185,192.99,9.791e-05,2]
[336457591,1724842043143,180.61,9.773e-05,2]
[336457594,1724842126210,26184.95764958,9.899e-05,2]
[336457595,1724842139204,10735.48019044,9.861e-05,2]
[336457597,1724842146944,23900.0,9.776e-05,2]
[336457610,1724842202303,151.47605466,9.776e-05,2]
[336457611,1724842212608,3000.0,0.00012111,30]
[336457612,1724842231210,200.0,9.73e-05,2]
[336457616,1724842232244,-172.77,9.937e-05,2]
[336457617,1724842232255,-2952.50043744,9.94e-05,2]
[336457618,1724842232270,-431.8416,9.94e-05,2]
[336457619,1724842232282,-1946.19548899,9.94e-05,2]
[336457620,1724842232293,-725.32353551,9.943e-05,2]
[336457621,1724842232303,-265.64160913,9.943e-05,2]
[336457622,1724842232312,-633.46248602,9.943e-05,2]
[336457623,1724842232322,-1931.63176949,9.943e-05,2]
[336457624,1724842232335,-628.17476541,9.966e-05,2]
[336457625,1724842232347,-1303.45700408,9.966e-05,2]
[336457626,1724842232358,-300.0,9.987e-05,2]
[336457627,1724842232370,-155.23199063,9.988e-05,2]
[336457628,1724842232380,-927.44810215,9.988e-05,2]
[336457629,1724842232392,-203.17347254,9.988e-05,2]
[336457630,1724842232403,-203.17347254,9.988e-05,2]
[336457631,1724842232414,-1931.63176949,9.988e-05,2]
[336457632,1724842232426,-206.06128228,9.999e-05,2]
[336457633,1724842232438,-2000.0,0.0001,2]
[336457634,1724842232449,-751.96829591,0.00010009,2]
[336457635,1724842232459,-155.0,0.00010009,2]
[336457636,1724842232470,-304.58048687,0.00010009,2]
[336457637,1724842232483,-547.39285044,0.00010009,2]
[336457638,1724842232494,-304.23573553,0.00010009,2]
[336457639,1724842232504,-900.0,0.00010068,2]
[336457640,1724842232517,-1000.0,0.00010068,2]
[336457641,1724842232527,-256.72459399,0.00010097,2]
[336457642,1724842232537,-427.06,0.000101,2]
[336457643,1724842232547,-427.06,0.00010178,2]
[336457644,1724842232559,-150.0,0.00010178,2]
[336457645,1724842232570,-150.0,0.00010178,2]
[336457646,1724842232580,-531.53,0.00010178,2]
[336457647,1724842232590,-150.0,0.00010438,2]
[336457648,1724842232600,-498.52,0.00010467,2]
[336457649,1724842232611,-150.0,0.000105,2]
[336457650,1724842232622,-427.06,0.000105,2]
[336457651,1724842232632,-150.0,0.00010599,2]
[336457652,1724842232643,-531.8,0.000106,2]
[336457653,1724842232654,-150.0,0.000106,2]
[336457654,1724842232664,-427.06,0.000106,2]
[336457655,1724842232676,-150.0,0.000106,2]
[336457656,1724842232686,-150.0,0.000106,2]
[336457657,1724842232696,-499.99,0.00010648,2]
[336457658,1724842232707,-10000.0,0.00010649,2]
[336457659,1724842232718,-3823.71,0.00010649,2]
[336457660,1724842232728,-251.25545763,0.00010699,2]
[336457661,1724842232738,-854.01,0.000107,2]
[336457662,1724842232748,-150.0,0.000107,2]
[336457663,1724842232760,-300.56,0.000107,2]
[336457664,1724842232770,-150.0,0.000107,2]
[336457665,1724842232783,-853.34,0.000107,2]
[336457666,1724842232793,-150.0,0.000107,2]
[336457667,1724842232804,-150.0,0.000107,2]
[336457668,1724842232814,-853.92,0.000107,2]
[336457669,1724842232824,-531.8,0.000107,2]
[336457670,1724842232835,-150.0,0.000107,2]
[336457671,1724842232845,-150.0,0.000107,2]
[336457672,1724842232856,-150.0,0.000107,2]
[336457673,1724842232867,-385.82986918,0.00010713,2]
[336457674,1724842232878,-385.82986918,0.00010713,2]
[336457675,1724842232888,-402.07411626,0.000108,2]
[336457676,1724842232898,-545.5327,0.000108,2]
[336457677,1724842232909,-4604.22352232,0.000108,2]
[336457678,1724842232923,-37386.97197768,0.000108,2]
[336457679,1724842232936,-2893.96,0.000108,2]
[336457680,1724842232947,-2849.1645,0.00010804,2]
[336457681,1724842232958,-2615.2223,0.00010804,2]
[336457682,1724842232968,-638.34176036,0.00010804,2]
[336457683,1724842232982,-998.64013964,0.00010804,2]
[336457684,1724842232993,-1000.0,0.00010804,2]
[336457685,1724842233005,-13227.346,0.00010804,2]
[336457686,1724842233018,-658.0173,0.00010804,2]
[336457687,1724842233029,-500.0,0.0001085,2]
[336457688,1724842233040,-500.0,0.00010859,2]
[336457689,1724842233051,-729.56564802,0.00010862,2]
[336457690,1724842233063,-500.0,0.00010868,2]
[336457691,1724842233075,-500.0,0.00010877,2]
[336457692,1724842233086,-500.0,0.00010886,2]
[336457693,1724842233097,-155.0,0.00010888,2]
[336457694,1724842233108,-155.0,0.00010888,2]
[336457695,1724842233119,-500.0,0.00010894,2]
[336457696,1724842233130,-247.2063,0.000109,2]
[336457697,1724842233141,-2046.9278,0.000109,2]
[336457698,1724842233152,-4493.2087,0.000109,2]
[336457699,1724842233163,-12207.5368,0.000109,2]
[336457700,1724842233174,-7500.0,0.000109,2]
[336457701,1724842233184,-325.44123532,0.000109,2]
[336457702,1724842233194,-500.0,0.00010903,2]
[336457703,1724842233205,-1545.0,0.00010904,2]
[336457704,1724842233215,-1259.0,0.00010904,2]
[336457705,1724842233225,-1922.0,0.00010904,2]
[336457706,1724842233236,-623.0,0.00010904,2]
[336457707,1724842233246,-1077.0,0.00010904,2]
[336457708,1724842233256,-150.0,0.00010904,2]
[336457709,1724842233267,-447.0,0.00010904,2]
[336457710,1724842233277,-557.0,0.00010904,2]
[336457711,1724842233287,-208.0,0.00010904,2]
[336457712,1724842233298,-810.0,0.00010904,2]
[336457713,1724842233308,-1898.0,0.00010904,2]
[336457714,1724842233318,-552.0,0.00010904,2]
[336457715,1724842233328,-248.0,0.00010904,2]
[336457716,1724842233339,-1147.0,0.00010904,2]
[336457717,1724842233350,-804.0,0.00010904,2]
[336457718,1724842233360,-3321.0,0.00010904,2]
[336457719,1724842233370,-1206.0,0.00010904,2]
[336457720,1724842233382,-5851.0,0.00010904,2]
[336457721,1724842233392,-289.0,0.00010904,2]
[336457722,1724842233402,-3730.0,0.00010904,2]
[336457723,1724842233413,-500.0,0.00010912,2]
[336457724,1724842233424,-601.98608,0.0001094,2]
[336457725,1724842233435,-200.0,0.00010946,2]
[336457726,1724842233446,-201.23,0.00010959,2]
[336457727,1724842233722,-164.35,0.00010959,2]
[336457728,1724842233741,-250.0,0.00010959,2]
[336457729,1724842233752,-617.3,0.00010959,2]
[336457730,1724842233762,-207.07,0.00010959,2]
[336457731,1724842233772,-172.56,0.00010959,2]
[336457732,1724842233782,-862.83,0.00010959,2]
[336457733,1724842233792,-162.315,0.00010968,2]
[336457734,1724842233802,-500.0,0.00010973,2]
[336457735,1724842233812,-420.0,0.00010985,2]
[336457736,1724842233822,-15263.54104794,0.0001099,2]
[336457737,1724842233833,-775.68558924,0.0001099,3]
[336457738,1724842233842,-177.81575934,0.00010997,2]
[336457739,1724842233853,-1604.11752924,0.00010999,3]
[336457740,1724842233863,-745.0,0.00010999,2]
[336457741,1724842233873,-745.0,0.00010999,2]
[336457742,1724842233883,-745.0,0.00010999,2]
[336457743,1724842233894,-745.0,0.00010999,2]
[336457744,1724842233905,-745.0,0.00010999,2]
[336457745,1724842233915,-745.0,0.00010999,2]
[336457746,1724842233925,-745.0,0.00010999,2]
[336457747,1724842233940,-745.0,0.00010999,2]
[336457748,1724842233950,-745.0,0.00010999,2]
[336457749,1724842233961,-745.0,0.00010999,2]
[336457750,1724842233971,-500.0,0.00010999,2]
[336457751,1724842233984,-500.0,0.00010999,2]
[336457752,1724842233994,-5638.5941816,0.00011,2]
[336457753,1724842234011,-138825.30970186,0.00011,2]
[336457754,1724842234021,-1000.0,0.00011,2]
[336457755,1724842234033,-1000.0,0.00011,2]
[336457756,1724842234043,-1000.0,0.00011,2]
[336457757,1724842234053,-169099.81212096,0.00011,2]
[336457758,1724842234071,-719.4241955,0.00011,2]
[336457759,1724842234082,-365.35210606,0.00011,2]
[336457760,1724842234094,-2475.883476,0.00011,2]
[336457761,1724842234107,-4612.82411465,0.00011,2]
[336457769,1724842238235,-1259.33418179,9.988e-05,2]
[336457771,1724842238246,-2872.21675558,0.00010649,2]
[336457772,1724842238256,-155.16187322,0.00010888,2]
[336457773,1724842238267,-13456.0,0.00010904,2]
[336457774,1724842238276,-150.0,0.00010904,2]
[336457775,1724842238285,-91601.50329424,0.00011,2]
[336457776,1724842238300,-976.96776414,0.00011,2]
[336457777,1724842238312,-1004.15032003,0.00011,2]
[336457778,1724842238325,-104919.5430815,0.00011,2]
[336457779,1724842238336,-281.78064608,0.00011,2]
[336457780,1724842238347,-3400.0,0.00011,2]
[336457781,1724842238417,-3742.70217563,0.00011,2]
[336457782,1724842238428,-12012.59999999,0.00011,2]
[336457783,1724842238439,-534.02114835,0.00011,2]
[336457784,1724842238450,-103982.20000004,0.00011,2]
[336457785,1724842238460,-2864.18590087,0.00011,2]
[336457786,1724842238471,-6084.77401869,0.00011,2]
[336457787,1724842238482,-12608.96321469,0.00011,2]
[336457788,1724842238572,-124042.99799875,0.00011,2]
[336457789,1724842238583,-1356.00596654,0.00011,2]
[336457790,1724842238595,-1600.0,0.00011,2]
[336457812,1724842240287,-385.82986918,0.00010699,2]
[336457813,1724842240297,-104.70492955,0.00011,2]
[336457814,1724842240496,-919.15031839,0.00011,2]
[336457815,1724842240508,-1332.68018456,0.00011,2]
[336457829,1724842243309,-150.812,0.00010904,2]
[336457830,1724842243318,-500.0,0.00010973,2]
[336457831,1724842243328,-546.748,0.00011,2]
[336457832,1724842243339,-11901.39867769,0.00011,2]
[336457877,1724842426182,500.0,8.972e-05,2]
[336457878,1724842467086,500.0,8.972e-05,2]
[336457879,1724842472573,1122.70276464,9.909e-05,2]
[336457880,1724842588632,155.0,9.899e-05,2]
[336457881,1724842592574,505.43,8.219e-05,2]
[336457882,1724842731346,880.0,9.904e-05,2]
[336457883,1724842968161,3036.2016465,9.899e-05,2]
[336457884,1724842971540,202.43509462,9.899e-05,2]
[336457888,1724843101293,506.62,8.219e-05,2]
[336457890,1724843117214,154.02485016,9.888e-05,2]
[336457891,1724843120760,26171.16613363,9.899e-05,2]
[336457906,1724843299001,296.0,9.796e-05,2]
[336457909,1724843385880,250.0,9.818e-05,2]
[336457910,1724843400451,500.0,8.972e-05,2]
[336457913,1724843427241,500.0,8.972e-05,2]
[336457918,1724843432545,-213.9,9.95e-05,2]
[336457919,1724843432554,-63.60956065,9.999e-05,2]
[336458022,1724843438491,-402.81065004,9.943e-05,2]
[336458024,1724843438500,-91.39043935,9.999e-05,2]
[336458026,1724843438510,-849.30932575,0.0001,2]
[336458032,1724843438734,-200.69067425,0.0001,2]
[336458033,1724843438744,-171.00436811,0.0001,2]
[336458034,1724843438753,-1051.84018982,0.0001,2]
[336458035,1724843438763,-1000.0,0.00010068,2]
[336458036,1724843438773,-900.0,0.00010068,2]
[336458038,1724843438782,-300.0,0.00010079,2]
[336458039,1724843438794,-9965.59394484,0.0001008,2]
[336458040,1724843438803,-180.62,0.00010082,2]
[336458041,1724843438815,-150.0,0.00010088,2]
[336458042,1724843438825,-56491.62518337,0.00010089,2]
[336458043,1724843438835,-499.99,0.00010089,2]
[336458044,1724843438845,-140272.92222096,0.0001009,2]
[336458057,1724843440688,-1542.50000025,0.0001009,2]
[336458058,1724843440853,-11381.25260755,0.0001009,2]
[336458059,1724843440863,-151.33,0.000101,2]
[336458060,1724843440873,-151.53,0.000101,2]
[336458061,1724843440882,-2459.87,0.000103,2]
[336458062,1724843440892,-506.62,0.00010472,2]
[336458063,1724843440902,-4820.28086686,0.00010566,2]
[336458064,1724843440912,-1140.77560614,0.00010566,2]
[336458065,1724843440923,-633.46248602,0.00010713,2]
[336458066,1724843440933,-1259.33418179,0.00010713,2]
[336458067,1724843440942,-3713.6,0.00010734,2]
[336458068,1724843440952,-299.99,0.00010734,2]
[336458069,1724843440965,-6968.5122,0.0001079,2]
[336458070,1724843440975,-333.34684302,0.00010799,2]
[336458071,1724843440984,-155.0,0.00010799,2]
[336458072,1724843440993,-260.3208,0.000108,2]
[336458073,1724843441002,-1204.08,0.000108,2]
[336458074,1724843441012,-2500.0,0.000108,2]
[336458075,1724843441021,-333.34684296,0.00010816,2]
[336458076,1724843441031,-333.34684296,0.00010833,2]
[336458078,1724843441039,-333.34684296,0.0001085,2]
[336458080,1724843441049,-265.64160913,0.00010852,2]
[336458082,1724843441058,-155.07765496,0.00010852,2]
[336458084,1724843441067,-289.9408,0.00010858,2]
[336458086,1724843441077,-333.34684296,0.00010866,2]
[336458088,1724843441086,-333.34684296,0.00010883,2]
[336458090,1724843441096,-523.67279708,0.00010888,2]
[336458092,1724843441105,-195.24889577,0.00010888,2]
[336458094,1724843441115,-385.82986918,0.00010888,2]
[336458096,1724843441124,-417.64261004,0.00010888,2]
[336458097,1724843441133,-1001.65507,0.0001089,2]
[336458099,1724843441142,-13456.0,0.00010892,2]
[336458101,1724843441152,-3730.0,0.00010892,2]
[336458103,1724843441161,-289.0,0.00010892,2]
[336458105,1724843441170,-5851.0,0.00010892,2]
[336458107,1724843441179,-1206.0,0.00010892,2]
[336458109,1724843441189,-23505.00407246,0.00010899,2]
[336458111,1724843441198,-23505.00407237,0.00010899,2]
[336458113,1724843441210,-23505.00407237,0.00010899,2]
[336458114,1724843441219,-23505.00407237,0.00010899,2]
[336458115,1724843441229,-23505.00407237,0.00010899,2]
[336458116,1724843441238,-23505.00407237,0.00010899,2]
[336458117,1724843441247,-23505.00407237,0.00010899,2]
[336458118,1724843441257,-23505.00407237,0.00010899,2]
[336458119,1724843441266,-23505.00407237,0.00010899,2]
[336458120,1724843441276,-402.07411626,0.00010899,2]
[336458121,1724843441289,-1117.4595,0.000109,2]
[336458122,1724843441298,-167.7305538,0.000109,2]
[336458123,1724843441308,-27107.2203,0.000109,2]
[336458124,1724843441318,-2326.8697,0.000109,2]
[336458125,1724843441328,-23505.00407237,0.000109,2]
[336458126,1724843441337,-1570.49694762,0.000109,2]
[336458127,1724843441347,-333.34684296,0.000109,2]
[336458128,1724843441357,-150.0,0.00010904,2]
[336458129,1724843441366,-163.16,0.00010904,2]
[336458130,1724843441375,-297.134,0.00010904,2]
[336458131,1724843441384,-150.0,0.00010904,2]
[336458132,1724843441393,-150.0,0.00010904,2]
[336458133,1724843441402,-150.0,0.00010904,2]
[336458134,1724843441411,-150.0,0.00010904,2]
[336458135,1724843441421,-623.0,0.00010904,2]
[336458136,1724843441431,-1922.0,0.00010904,2]
[336458137,1724843441440,-1259.0,0.00010904,2]
[336458138,1724843441451,-1545.0,0.00010904,2]
[336458139,1724843441462,-810.0,0.00010904,2]
[336458140,1724843441471,-556.0,0.00010904,2]
[336458141,1724843441480,-1898.0,0.00010904,2]
[336458142,1724843441489,-552.0,0.00010904,2]
[336458143,1724843441498,-804.0,0.00010904,2]
[336458144,1724843441508,-1147.0,0.00010904,2]
[336458145,1724843441517,-248.0,0.00010904,2]
[336458146,1724843441526,-3321.0,0.00010904,2]
[336458147,1724843441536,-179.77,0.00010959,2]
[336458148,1724843441545,-500.0,0.00010973,2]
[336458149,1724843441554,-177.81575934,0.00010987,2]
[336458150,1724843441563,-819538.90864858,0.0001099,4]
[336458151,1724843441572,-247.62511432,0.0001099,2]
[336458152,1724843441581,-177.81575934,0.00010997,2]
[336458153,1724843441729,-500.0,0.00010999,2]
[336458154,1724843441788,-500.0,0.00010999,2]
[336458155,1724843441798,-542228.46774913,0.00011,2]
[336458156,1724843441807,-3921496.9664232,0.00011,2]
[336458163,1724843443757,-724.21034394,0.00010505,2]
[336458164,1724843443766,-10233.11076966,0.00011,2]
[336458169,1724843446661,-6000.37679999,0.00011,2]
[336458171,1724843455736,150.0,8.719e-05,2]
[336458172,1724843594727,482.63,8.917e-05,2]
[336458173,1724843988482,-12207.5368,9.99e-05,2]
[336458174,1724843988507,-539.07,0.0001,2]
[336458175,1724843988531,-26216.8344,0.0001,2]
[336458176,1724844235728,458.49,8.219e-05,2]
[336458177,1724844340074,372.79,9.582e-05,2]
[336458184,1724844510664,1000.0,9.795e-05,2]
[336458185,1724844518573,199.36,9.582e-05,2]
[336458223,1724844631735,-716.63154696,9.95e-05,2]
[336458224,1724844631815,-5.064e-05,9.95e-05,2]
[336458230,1724844638009,-23173.3684024,9.95e-05,2]
[336458231,1724844638018,-419.57836223,9.988e-05,2]
[336458232,1724844638028,-528.91996067,9.988e-05,2]
[336458233,1724844638037,-79566.0,0.0001,2]
[336458234,1724844638047,-341.16250447,0.0001,4]
[336458235,1724844638056,-1051.86058066,0.0001,2]
[336458236,1724844638065,-170.73845005,0.0001,2]
[336458237,1724844638075,-162.95327982,0.0001,2]
[336458238,1724844638084,-182.09092873,0.0001,2]
[336458239,1724844638094,-413.39640966,0.0001,2]
[336458240,1724844638103,-500.0,0.0001,2]
[336458241,1724844638113,-299.5350814,0.0001,2]
[336458242,1724844638123,-402.28191182,0.0001,2]
[336458243,1724844638133,-1050.0,0.0001,2]
[336458244,1724844638143,-2505.40041835,0.00010009,2]
[336458245,1724844638153,-900.0,0.00010068,2]
[336458246,1724844638162,-900.0,0.00010068,2]
[336458247,1724844638172,-11504.0,0.000101,3]
[336458248,1724844638181,-5550.45377461,0.000102,5]
[336458249,1724844638193,-1015.68321714,0.000102,5]
[336458250,1724844638204,-3009.07922997,0.000102,5]
[336458257,1724844639722,-721.068,0.000102,5]
[336458258,1724844639868,-1207.71577828,0.000102,5]
[336458259,1724844639877,-791.18,0.000102,2]
[336458260,1724844639887,-200.0,0.00010247,2]
[336458261,1724844639898,-150.0,0.00010278,2]
[336458262,1724844639908,-2090.89,0.000103,2]
[336458263,1724844639917,-172.77,0.00010449,2]
[336458264,1724844639927,-458.49,0.00010473,2]
[336458265,1724844639936,-2653.68365415,0.00010505,2]
[336458266,1724844639946,-400.0,0.00010628,2]
[336458267,1724844639956,-3702.2,0.00010799,2]
[336458268,1724844639966,-724.21034394,0.00010799,2]
[336458269,1724844639976,-684.58310716,0.000108,2]
[336458270,1724844639988,-106.59689284,0.000108,2]
[336458271,1724844639998,-256.48304885,0.000108,2]
[336458272,1724844640007,-1745.7996029,0.000108,2]
[336458273,1724844640019,-374.38145483,0.000108,2]
[336458274,1724844640030,-293.51439999,0.000108,2]
[336458277,1724844643033,-6016.0864566,0.000108,2]
[336458330,1724844645784,-1504.5175478,0.000108,2]
[336458332,1724844650668,1822.3371,9.85e-05,2]
[336458333,1724844774918,200.0,9.585e-05,2]
[336458334,1724844819488,412.64,8.219e-05,2]
[336458335,1724844885312,900.0,8.22e-05,2]
[336458336,1724844886887,900.0,9.59e-05,2]
[336458337,1724844897609,500.0,8.22e-05,2]
[336458338,1724844899297,500.0,8.22e-05,2]
[336458339,1724844988306,186.39,9.585e-05,2]
[336458340,1724845083544,500.0,8.22e-05,2]
[336458341,1724845091535,800.0,8.22e-05,2]
[336458342,1724845093119,800.0,9.59e-05,2]
[336458343,1724845096562,200.0,9.585e-05,2]
[336458344,1724845347467,633.46248602,9.899e-05,2]
[336458345,1724845374904,265.64160913,9.899e-05,2]
[336458346,1724845403631,392.0,8.219e-05,2]
[336458347,1724845486255,2158.00045484,9.899e-05,2]
[336458348,1724845536569,800.0,8.22e-05,2]
[336458349,1724845537209,700.0,8.22e-05,2]
[336458350,1724845538153,800.0,9.59e-05,2]
[336458351,1724845538487,700.0,9.59e-05,2]
[336458352,1724845563335,347.122483,9.86e-05,2]
[336458353,1724845590923,840.0,9.87e-05,2]
[336458354,1724845613766,155.0,9.899e-05,2]
[336458360,1724845664796,155.0,9.899e-05,2]
[336458361,1724845667762,950.31438171,9.909e-05,2]
[336458362,1724845675763,304.39777343,9.899e-05,2]
[336458363,1724845675794,155.0,9.899e-05,2]
[336458364,1724845683930,950.31438171,9.909e-05,2]
[336458365,1724845693128,1500.0,9.909e-05,2]
[336458366,1724845694138,155.0,9.899e-05,2]
[336458367,1724845697756,385.82986918,9.899e-05,2]
[336458368,1724845724289,420.75566012,9.899e-05,2]
[336458370,1724845742089,402.81065004,9.899e-05,2]
[336458371,1724845761183,1299.66487496,9.909e-05,2]
[336458372,1724845766567,368.59748742,9.899e-05,2]
[336458373,1724845767503,192.96907921,9.899e-05,2]
[336458374,1724845771679,206.06128228,9.899e-05,2]
[336458376,1724845828391,293.57281943,9.899e-05,2]
[336458400,1724845831674,-186.39,9.93e-05,2]
[336458401,1724845831683,-1868.23995527,9.941e-05,2]
[336458402,1724845831692,-907.94698681,9.943e-05,2]
[336458403,1724845831780,-3078.55932045,9.943e-05,2]
[336458404,1724845831887,-1330.37222806,9.943e-05,2]
[336458405,1724845831898,-4318.1251668,9.943e-05,2]
[336458406,1724845831910,-4054.52126582,9.943e-05,2]
[336458407,1724845831921,-4796.58478385,9.943e-05,2]
[336458408,1724845831932,-1956.37593354,9.943e-05,2]
[336458409,1724845831943,-617.6745566,9.943e-05,2]
[336458433,1724845837810,-3133.92547311,9.943e-05,2]
[336458434,1724845837822,-398.82036052,9.943e-05,2]
[336458435,1724845837865,-518.68637451,9.943e-05,2]
[336458436,1724845837874,-150.0,9.945e-05,2]
[336458437,1724845837884,-360.0,9.948e-05,2]
[336458438,1724845837893,-432.91968686,9.988e-05,2]
[336458439,1724845837903,-1259.40666252,9.988e-05,2]
[336458440,1724845837912,-2352.8943779,0.0001,2]
[336458441,1724845837921,-150.0,0.00010096,2]
[336458442,1724845837930,-824.46,0.00010096,2]
[336458443,1724845837939,-2546.63,0.00010096,2]
[336458444,1724845837949,-2523.74,0.000103,2]